[Event "Asian Continental-ch Women 2019"]
[Site "XingTai"]
[Date "2019.06.13"]
[Round "7.20"]
[White "Munguntuul, Batkhuyag"]
[Black "Li, Xueyi"]
[Result "1-0"]
[ECO "B11"]
[WhiteElo "2420"]
[BlackElo "2305"]
[Annotator "NA RC"]
[PlyCount "83"]
[EventDate "2019.06.06"]
[EventType "swiss"]
[EventCountry "CHN"]
[SourceTitle "playchess.com"]
[Source "ChessBase"]
[SourceQuality "1"]
[TimeControl "40/5400+30:1800+30"]

1. e4 {[%emt 0:00:00]} c6 {[%emt 0:00:00]} 2. Nc3 {[%emt 0:00:00]} d5 {[%emt 0:00:00]} 3. Nf3 {[%emt 0:00:00]} Nf6 {[%emt 0:00:35]} 4. e5 {[%emt 0:00:00]} Ne4 {[%emt 0:00:13]} 5. Ne2 {[%emt 0:00:04]} Qb6 {[%emt 0:00:20]} 6. d4 {[%emt 0:00:17] B11: Caro-Kann: Two Knights Variation} e6 {[%emt 0:00:46]} 7. Ng3 {[%emt 0:01:14]} c5 {[%emt 0:06:05]} 8. Bd3 {[%emt 0:04:03]} Nxg3 {[%emt 0:08:59]} 9. hxg3 {[%emt 0:01:25]} cxd4 {[%emt 0:00:12]} 10. g4 {[%emt 0:01:37]} (10. Ng5 Nc6 11. Nxh7 Bd7 12. Qe2 O-O-O 13. O-O {0-1 (30) Mamedov,R (2703)-Piorun,K (2634) St Petersburg 2018}) 10... Nc6 {[%emt 0:00:43]} 11. a3 {[%emt 0:04:18]} Bd7 {[%emt 0:01:06]} 12. Qe2 {[%emt 0:02:30]} Be7 $146 {[%emt 0:17:03]} ({Predecessor:} 12... O-O-O 13. g5 {½-½ (41) Tanaka,T (2054)-Itkin,D (2239) Quebec 2018}) 13. g5 {[%emt 0:20:18]} O-O-O {[%emt 0:02:21]} 14. Bd2 {[%emt 0:02:40]} f6 {[%emt 0:07:54]} 15. O-O-O {[%emt 0:02:31]} Kb8 {[%emt 0:11:34]} (15... Rdf8 $11) 16. gxf6 {[%emt 0:10:31]} gxf6 {[%emt 0:00:07]} 17. exf6 {[%emt 0:00:23]} Bxf6 {[%emt 0:00:12]} 18. Bf4+ {[%emt 0:00:08]} Ka8 {[%emt 0:00:05]} 19. Ne5 {[%emt 0:01:04]} Na5 {[%emt 0:05:53]} 20. Rh6 {[%emt 0:04:17]} Rhf8 $16 {[%emt 0:04:34]} 21. Rxf6 {[%emt 0:08:59]} Rxf6 {[%emt 0:00:33]} 22. Bg5 {[%emt 0:00:01]} Rff8 {[%emt 0:01:58]} 23. Bxd8 {[%emt 0:00:08]} Rxd8 {[%emt 0:00:08]} 24. Bxh7 {[%emt 0:00:42]} Nc4 {[%emt 0:03:23]} 25. Nxc4 {[%emt 0:01:47]} dxc4 {[%emt 0:00:06]} 26. Qxc4 {[%emt 0:01:08]} Bb5 {[%emt 0:00:20]} 27. Qb3 {[%emt 0:00:51]} Qc6 {[%emt 0:00:50]} 28. f3 {[%emt 0:01:11]} a6 {[%emt 0:04:08]} 29. Be4 {[%emt 0:06:16]} Qd7 {[%emt 0:02:03]} 30. g4 {[%emt 0:06:48]} Rc8 {[%emt 0:02:59]} 31. Kb1 {[%emt 0:00:45]} e5 {[%emt 0:06:01]} 32. Bf5 {[%emt 0:02:44]} Qc7 {[%emt 0:00:29]} 33. Bxc8 {[%emt 0:00:04]} Qxc8 {[%emt 0:00:04]} 34. Qd5 {[%emt 0:01:26]} Qc7 {[%emt 0:07:24]} 35. Re1 {[%emt 0:00:39]} Ba4 {[%emt 0:00:31]} 36. Qe4 {[%emt 0:04:41]} Qc4 {[%emt 0:03:19]} 37. g5 {[%emt 0:00:45]} Bc6 {[%emt 0:01:06]} 38. Qd3 {[%emt 0:00:54]} Qd5 {[%emt 0:01:18]} 39. g6 {[%emt 0:02:21]} Bb5 {[%emt 0:01:18]} 40. Qe4 {[%emt 0:00:00]} Qd7 {[%emt 0:00:00]} 41. Rh1 {[%emt 0:02:13]} Bc4 {[%emt 0:05:54]} 42. Qxe5 {[%emt 0:01:24]} 1-0

[Event "Asian Continental-ch Women 2019"]
[Site "XingTai"]
[Date "2019.06.13"]
[Round "7.23"]
[White "Li, Yunshan"]
[Black "Vo, Thi Kim Phung"]
[Result "1-0"]
[ECO "A63"]
[WhiteElo "2264"]
[BlackElo "2337"]
[Annotator "NA RC"]
[PlyCount "133"]
[EventDate "2019.06.06"]
[EventType "swiss"]
[EventCountry "CHN"]
[SourceTitle "playchess.com"]
[Source "ChessBase"]
[SourceQuality "1"]
[TimeControl "40/5400+30:1800+30"]

1. d4 {[%emt 0:00:00]} Nf6 {[%emt 0:00:00]} 2. c4 {[%emt 0:00:00]} e6 {[%emt 0:00:00]} 3. g3 {[%emt 0:00:00]} c5 {[%emt 0:00:00]} 4. d5 {[%emt 0:00:15]} exd5 $11 {[%emt 0:00:09]} 5. cxd5 {[%emt 0:00:04]} d6 {[%emt 0:00:08]} 6. Nc3 {[%emt 0:00:10]} g6 {[%emt 0:00:16]} 7. Bg2 {[%emt 0:00:08]} Bg7 {[%emt 0:00:11]} 8. Nf3 {[%emt 0:00:08]} O-O {[%emt 0:00:11]} 9. O-O {[%emt 0:00:09]} a6 {[%emt 0:00:08]} 10. a4 {[%emt 0:00:10]} Re8 {[%emt 0:00:07]} 11. Re1 {[%emt 0:00:43]} Nbd7 {[%emt 0:00:06]} 12. h3 {[%emt 0:08:32]} Ne4 {[%emt 0:01:26]} 13. Nxe4 {[%emt 0:01:02]} Rxe4 {[%emt 0:00:06]} 14. Qc2 {[%emt 0:02:31]} Re8 {[%emt 0:02:31]} 15. Bf4 {[%emt 0:01:56]} Nf6 {[%emt 0:02:04]} 16. e4 {[%emt 0:02:28]} Nh5 {[%emt 0:00:42]} 17. Bd2 {[%emt 0:06:29]} Bd7 {[%emt 0:01:29]} 18. Bc3 {[%emt 0:07:03]} b5 {[%emt 0:02:59]} 19. Bxg7 {[%emt 0:00:49]} Nxg7 {[%emt 0:00:14]} 20. e5 {[%emt 0:00:25]} bxa4 {[%emt 0:08:46]} 21. exd6 {[%emt 0:00:44]} Qf6 {[%emt 0:01:25]} 22. Nd2 {[%emt 0:04:11]} Bf5 {[%emt 0:03:11]} 23. Qxa4 {[%emt 0:17:39]} Qxb2 {[%emt 0:02:16]} 24. Rxe8+ {[%emt 0:00:32]} Nxe8 {[%emt 0:07:20]} 25. Nc4 {[%emt 0:03:25]} Qb4 {[%emt 0:00:33]} 26. Qc6 {[%emt 0:01:45]} Rd8 {[%emt 0:00:16]} 27. Bf1 {[%emt 0:08:22]} Bc8 {[%emt 0:09:44]} 28. Nb6 {[%emt 0:05:31]} Qc3 {[%emt 0:00:52]} 29. Ra4 {[%emt 0:07:41]} Nxd6 {[%emt 0:04:34]} 30. Nxc8 Nxc8 {[%emt 0:00:09]} 31. Rxa6 {[%emt 0:03:44]} Nd6 {[%emt 0:07:04]} 32. Qc7 {[%emt 0:00:37]} Qf6 {[%emt 0:00:11]} 33. Qxc5 {[%emt 0:01:13]} Kg7 {[%emt 0:01:06]} 34. Qc7 {[%emt 0:05:43]} Ne8 {[%emt 0:01:11]} 35. Qa5 {[%emt 0:01:55]} Nd6 {[%emt 0:01:22]} 36. Qa1 {[%emt 0:06:49]} Qxa1 {[%emt 0:02:05]} 37. Rxa1 {[%emt 0:00:02]} g5 {[%emt 0:01:56]} 38. Ra4 {[%emt 0:02:22]} Kf6 {[%emt 0:00:16]} 39. Bg2 {[%emt 0:00:33]} h6 {[%emt 0:00:23]} 40. f4 {[%emt 0:00:00]} Kf5 {[%emt 0:00:00]} 41. Kh2 {[%emt 0:08:16]} Kf6 {[%emt 0:02:34]} 42. g4 {[%emt 0:00:46]} gxf4 {[%emt 0:04:15]} 43. Rxf4+ {[%emt 0:00:15]} Ke5 {[%emt 0:00:09]} 44. Rf1 {[%emt 0:04:27]} f5 {[%emt 0:00:14]} 45. Kg3 {[%emt 0:01:01]} fxg4 {[%emt 0:13:17]} 46. hxg4 {[%emt 0:01:07]} h5 {[%emt 0:02:46]} 47. Re1+ {[%emt 0:02:54]} Kf6 {[%emt 0:04:13]} 48. Re6+ {[%emt 0:00:43]} Kf7 {[%emt 0:00:45]} 49. gxh5 {[%emt 0:01:38]} Rg8+ {[%emt 0:00:34]} 50. Kf2 {[%emt 0:00:25]} Ne8 {[%emt 0:04:50]} 51. Be4 {[%emt 0:02:35]} Nf6 {[%emt 0:00:06]} 52. Bg6+ {[%emt 0:00:40]} Kg7 {[%emt 0:00:01]} 53. d6 {[%emt 0:01:37]} Rh8 {[%emt 0:02:55]} 54. Ke3 {[%emt 0:10:07]} Nxh5 {[%emt 0:00:16]} 55. Bxh5 {[%emt 0:00:20]} Rxh5 {[%emt 0:00:02]} 56. Ke4 {[%emt 0:00:51]} Rh1 {[%emt 0:24:50]} 57. Kd5 {[%emt 0:00:30]} Kf7 {[%emt 0:02:15]} 58. Re4 {[%emt 0:00:27]} Rd1+ {[%emt 0:00:21]} 59. Kc6 {[%emt 0:00:06]} Rc1+ {[%emt 0:00:27]} 60. Kb7 {[%emt 0:00:20]} Rd1 {[%emt 0:00:16]} 61. Kc7 {[%emt 0:00:05]} Rc1+ {[%emt 0:00:07]} 62. Kd8 {[%emt 0:00:05]} Rd1 {[%emt 0:02:32]} 63. d7 {[%emt 0:00:04]} Rd2 {[%emt 0:00:30]} 64. Re7+ {[%emt 0:00:41]} Kf8 {[%emt 0:00:12]} 65. Re8+ {[%emt 0:00:08]} Kf7 {[%emt 0:00:04]} 66. Kc7 {[%emt 0:00:14]} Rc2+ {[%emt 0:02:24]} 67. Kb6 {[%emt 0:00:04]} 1-0

[Event "Asian Continental-ch Women 2019"]
[Site "XingTai"]
[Date "2019.06.13"]
[Round "7.25"]
[White "Dauletova, Gulmira"]
[Black "Mahalakshmi, M."]
[Result "1/2-1/2"]
[ECO "B56"]
[WhiteElo "2252"]
[BlackElo "2245"]
[Annotator "NA"]
[PlyCount "241"]
[EventDate "2019.06.06"]
[EventType "swiss"]
[EventCountry "CHN"]
[SourceTitle "playchess.com"]
[Source "ChessBase"]
[SourceQuality "1"]
[TimeControl "40/5400+30:1800+30"]

1. e4 {[%emt 0:00:00]} c5 {[%emt 0:00:00]} 2. Nf3 {[%emt 0:00:00]} d6 {[%emt 0:00:00]} 3. d4 {[%emt 0:00:23]} cxd4 {[%emt 0:00:00]} 4. Nxd4 {[%emt 0:00:06]} Nf6 {[%emt 0:00:00]} 5. Nc3 {[%emt 0:00:12]} a6 {[%emt 0:00:21]} 6. Nb3 {[%emt 0:01:51]} Nc6 {[%emt 0:05:01]} 7. Be2 {[%emt 0:01:32]} e6 {[%emt 0:01:12]} 8. O-O {[%emt 0:06:18]} b5 {[%emt 0:02:05]} 9. a3 {[%emt 0:01:09]} Be7 {[%emt 0:00:52]} 10. Be3 {[%emt 0:01:50]} O-O {[%emt 0:02:53]} 11. f4 {[%emt 0:00:09]} Bb7 {[%emt 0:02:23]} 12. Qd2 {[%emt 0:04:47]} Rc8 {[%emt 0:03:01]} 13. Bf3 {[%emt 0:02:51]} Nd7 {[%emt 0:04:08]} 14. Qf2 {[%emt 0:17:10]} Na5 {[%emt 0:04:28]} 15. Nd4 {[%emt 0:08:13]} Nc4 {[%emt 0:03:23]} 16. Bc1 {[%emt 0:00:04]} Ndb6 {[%emt 0:11:16]} 17. b3 {[%emt 0:06:32]} Nxa3 {[%emt 0:02:33]} 18. Bxa3 {[%emt 0:03:21]} Rxc3 {[%emt 0:03:12]} 19. Bb4 {[%emt 0:00:57]} Rc8 {[%emt 0:10:21]} 20. Ba5 {[%emt 0:00:04]} Qc7 {[%emt 0:03:02]} 21. f5 {[%emt 0:29:29]} e5 {[%emt 0:05:30]} 22. f6 {[%emt 0:00:01]} Bxf6 {[%emt 0:01:37]} 23. Nf5 {[%emt 0:00:02]} Bd8 {[%emt 0:02:09]} 24. Rad1 {[%emt 0:00:02]} Rb8 {[%emt 0:08:08]} 25. Rxd6 {[%emt 0:03:17]} Bc8 {[%emt 0:09:31]} 26. Rxb6 {[%emt 0:08:12]} Rxb6 {[%emt 0:06:06]} 27. Bxb6 {[%emt 0:00:01]} Qxb6 {[%emt 0:00:09]} 28. Ne7+ {[%emt 0:00:04]} Kh8 {[%emt 0:00:04]} 29. Nxc8 {[%emt 0:00:03]} Qc7 {[%emt 0:00:43]} 30. Bg4 {[%emt 0:00:21]} f5 {[%emt 0:02:25]} 31. exf5 {[%emt 0:00:02]} Rf6 {[%emt 0:01:01]} 32. Qe2 {[%emt 0:03:28]} Qxc8 {[%emt 0:02:46]} 33. Qxe5 {[%emt 0:00:02]} Bc7 {[%emt 0:00:57]} 34. Qe4 {[%emt 0:00:13]} Qb8 {[%emt 0:00:38]} 35. g3 {[%emt 0:03:11]} Rf8 {[%emt 0:01:17]} 36. Re1 {[%emt 0:01:25]} Bb6+ {[%emt 0:01:57]} 37. Kg2 {[%emt 0:00:04]} Qc7 {[%emt 0:00:34]} 38. Rf1 {[%emt 0:00:48]} Rc8 {[%emt 0:01:19]} 39. Bd1 {[%emt 0:00:20]} Rd8 {[%emt 0:01:27]} 40. Be2 {[%emt 0:00:00]} Rf8 {[%emt 0:00:00]} 41. Bd3 {[%emt 0:03:25]} Qd7 {[%emt 0:03:04]} 42. Qb4 {[%emt 0:06:51]} Rf6 {[%emt 0:02:50]} 43. Re1 {[%emt 0:06:19]} Qc6+ {[%emt 0:04:26]} 44. Qe4 {[%emt 0:00:04]} Qc5 {[%emt 0:01:50]} 45. Qa8+ {[%emt 0:03:33]} Rf8 {[%emt 0:00:54]} 46. Re8 {[%emt 0:00:22]} Kg8 {[%emt 0:00:39]} 47. Rxf8+ {[%emt 0:03:01]} Qxf8 {[%emt 0:00:02]} 48. Qxa6 {[%emt 0:00:10]} Qc5 {[%emt 0:00:58]} 49. Qxb5 {[%emt 0:00:14]} Qf2+ {[%emt 0:01:36]} 50. Kh3 {[%emt 0:00:02]} Qe3 {[%emt 0:00:27]} 51. Qd5+ {[%emt 0:00:13]} Kf8 {[%emt 0:00:08]} 52. Qd6+ {[%emt 0:00:27]} Kf7 {[%emt 0:00:56]} 53. Bc4+ {[%emt 0:00:34]} Ke8 {[%emt 0:00:07]} 54. Qe6+ {[%emt 0:00:34]} Qxe6 {[%emt 0:00:07]} 55. Bxe6 {[%emt 0:00:18]} Ke7 {[%emt 0:00:13]} 56. Bg8 {[%emt 0:00:44]} h6 {[%emt 0:00:10]} 57. Bc4 {[%emt 0:03:40]} Kd6 {[%emt 0:00:27]} 58. Kg4 {[%emt 0:00:13]} Bg1 {[%emt 0:00:13]} 59. h3 {[%emt 0:00:04]} Bf2 {[%emt 0:01:08]} 60. Kf4 {[%emt 0:00:17]} Kc5 {[%emt 0:00:20]} 61. g4 {[%emt 0:00:48]} Kd4 {[%emt 0:00:31]} 62. f6 {[%emt 0:01:02]} gxf6 {[%emt 0:00:45]} 63. Bd3 {[%emt 0:00:49]} Kc3 {[%emt 0:02:09]} 64. Kf5 {[%emt 0:00:16]} Bh4 {[%emt 0:00:20]} 65. Kg6 {[%emt 0:00:26]} Bg5 {[%emt 0:00:06]} 66. Kh5 {[%emt 0:01:37]} Be3 {[%emt 0:00:49]} 67. Bf5 {[%emt 0:00:20]} Bd2 {[%emt 0:01:11]} 68. Kg6 {[%emt 0:00:03]} Bg5 {[%emt 0:00:16]} 69. Kf7 {[%emt 0:01:32]} Bh4 {[%emt 0:02:33]} 70. Ke6 {[%emt 0:00:05]} Bg5 {[%emt 0:00:42]} 71. Kd5 {[%emt 0:00:05]} Be3 {[%emt 0:05:29]} 72. h4 {[%emt 0:00:06]} Bf2 {[%emt 0:00:38]} 73. h5 {[%emt 0:00:03]} Be3 {[%emt 0:01:05]} 74. Kc6 {[%emt 0:00:50]} Bf4 {[%emt 0:01:00]} 75. Kc5 {[%emt 0:00:04]} Be3+ {[%emt 0:00:25]} 76. Kb5 {[%emt 0:00:10]} Bf4 {[%emt 0:00:11]} 77. Kc6 {[%emt 0:00:12]} Be3 {[%emt 0:00:33]} 78. Kd5 {[%emt 0:00:08]} Bf4 {[%emt 0:00:46]} 79. Ke6 {[%emt 0:00:02]} Bg5 {[%emt 0:01:53]} 80. Kf7 {[%emt 0:00:16]} Bh4 {[%emt 0:01:31]} 81. Kg7 {[%emt 0:01:01]} Bg5 {[%emt 0:00:09]} 82. Kg6 {[%emt 0:00:04]} Kb4 {[%emt 0:01:08]} 83. c4 {[%emt 0:02:38]} Kc5 {[%emt 0:01:19]} 84. Bc2 {[%emt 0:01:07]} Kb4 {[%emt 0:01:06]} 85. Bd1 {[%emt 0:00:39]} Kc5 {[%emt 0:00:12]} 86. Kf5 {[%emt 0:01:29]} Bh4 {[%emt 0:00:50]} 87. Ke4 {[%emt 0:00:31]} Bg5 {[%emt 0:01:01]} 88. Kd3 {[%emt 0:00:52]} Bh4 {[%emt 0:00:41]} 89. Bc2 {[%emt 0:00:48]} Bg3 {[%emt 0:00:28]} 90. Ke4 {[%emt 0:00:35]} Bh4 {[%emt 0:00:15]} 91. Kf5 {[%emt 0:00:54]} Bg5 {[%emt 0:00:17]} 92. Ke6 {[%emt 0:00:06]} Bh4 {[%emt 0:00:29]} 93. Kd7 {[%emt 0:00:15]} Bg5 {[%emt 0:01:20]} 94. Bd1 {[%emt 0:00:59]} Bh4 {[%emt 0:00:32]} 95. Ke6 {[%emt 0:00:16]} Bg5 {[%emt 0:00:38]} 96. Be2 {[%emt 0:00:10]} Bh4 {[%emt 0:00:49]} 97. Kf5 {[%emt 0:02:24]} Bg5 {[%emt 0:00:18]} 98. Ke4 {[%emt 0:00:02]} Bh4 {[%emt 0:01:00]} 99. Kd3 {[%emt 0:00:04]} Bf2 {[%emt 0:00:55]} 100. Bf1 {[%emt 0:00:45]} Bg3 {[%emt 0:01:21]} 101. Ke3 {[%emt 0:00:17]} Bh4 {[%emt 0:00:18]} 102. Ke4 {[%emt 0:00:11]} Bg5 {[%emt 0:00:12]} 103. Kf5 {[%emt 0:01:20]} Bh4 {[%emt 0:00:11]} 104. Kg6 {[%emt 0:00:05]} Bg5 {[%emt 0:00:04]} 105. Be2 {[%emt 0:00:43]} Kb4 {[%emt 0:00:08]} 106. Kf5 {[%emt 0:01:39]} Kc5 {[%emt 0:00:08]} 107. Ke4 {[%emt 0:00:53]} Bh4 {[%emt 0:00:17]} 108. Kd3 {[%emt 0:00:04]} Bf2 {[%emt 0:00:18]} 109. Bf3 {[%emt 0:00:06]} Bg3 {[%emt 0:01:08]} 110. Bd5 {[%emt 0:01:20]} Bf2 {[%emt 0:01:07]} 111. Be6 {[%emt 0:00:12]} Bg3 {[%emt 0:00:42]} 112. g5 {[%emt 0:02:05]} fxg5 {[%emt 0:00:13]} 113. Bg4 {[%emt 0:00:01]} Bf2 {[%emt 0:01:40]} 114. Ke4 {[%emt 0:00:32]} Kb4 {[%emt 0:00:22]} 115. Kd5 {[%emt 0:00:23]} Be3 {[%emt 0:00:26]} 116. Ke4 {[%emt 0:00:36]} Bf2 {[%emt 0:00:53]} 117. Kd5 {[%emt 0:00:43]} Be3 {[%emt 0:00:06]} 118. Kd6 {[%emt 0:00:41]} Bf2 {[%emt 0:00:20]} 119. Kd5 {[%emt 0:01:59]} Be3 {[%emt 0:00:08]} 120. Ke4 {[%emt 0:00:45]} Bf2 {[%emt 0:00:06]} 121. Kd5 {[%emt 0:01:43]} 1/2-1/2

[Event "Asian Continental-ch Women 2019"]
[Site "XingTai"]
[Date "2019.06.14"]
[Round "8.18"]
[White "Saduakassova, Dinara"]
[Black "Munguntuul, Batkhuyag"]
[Result "1-0"]
[ECO "B48"]
[WhiteElo "2458"]
[BlackElo "2420"]
[Annotator "ChessBase"]
[PlyCount "105"]
[EventDate "2019.06.06"]
[EventType "swiss"]
[EventCountry "CHN"]
[SourceTitle "playchess.com"]
[Source "ChessBase"]
[SourceQuality "1"]
[TimeControl "40/5400+30:1800+30"]

1. e4 {[%emt 0:00:00]} c5 {[%emt 0:00:00]} 2. Nf3 {[%emt 0:00:00]} e6 {[%emt 0:00:00]} 3. d4 {[%emt 0:00:00]} cxd4 {[%emt 0:00:00]} 4. Nxd4 {[%emt 0:00:00]} Nc6 {[%emt 0:00:00]} 5. Nc3 {[%emt 0:00:00]} Qc7 {[%emt 0:00:02]} 6. Be3 {[%emt 0:00:00]} a6 {[%emt 0:00:11]} 7. Qd2 {[%emt 0:00:11]} Nf6 {[%emt 0:01:16]} 8. O-O-O {[%emt 0:00:45]} Bb4 {[%emt 0:00:24]} 9. f3 {[%emt 0:00:28]} O-O {[%emt 0:01:53]} 10. a3 {[%emt 0:00:34]} Be7 {[%emt 0:01:10]} 11. g4 {[%emt 0:00:36]} b5 {[%emt 0:00:39]} 12. h4 {[%emt 0:00:23]} b4 {[%emt 0:05:20]} 13. axb4 {[%emt 0:00:50]} Bxb4 {[%emt 0:00:13]} 14. h5 {[%emt 0:08:00]} Ne5 {[%emt 0:11:14]} 15. g5 {[%emt 0:01:55]} Ne8 {[%emt 0:01:09]} 16. f4 {[%emt 0:06:14]} Nc4 {[%emt 0:04:44]} 17. Bxc4 {[%emt 0:00:57]} Qxc4 {[%emt 0:00:05]} 18. h6 {[%emt 0:08:24]} g6 {[%emt 0:02:14]} 19. Nf3 {[%emt 0:05:34]} Bxc3 {[%emt 0:13:36]} 20. Qxc3 {[%emt 0:01:10]} Qxc3 {[%emt 0:00:24]} 21. bxc3 {[%emt 0:00:04]} Bb7 {[%emt 0:00:36]} 22. Rxd7 {[%emt 0:01:51]} Bxe4 {[%emt 0:00:25]} 23. Rf1 {[%emt 0:00:23]} f6 {[%emt 0:07:55]} 24. Nd2 {[%emt 0:06:44]} Bf5 {[%emt 0:05:22]} 25. gxf6 {[%emt 0:08:46]} Rf7 {[%emt 0:09:15]} 26. Rxf7 {[%emt 0:03:10]} Kxf7 {[%emt 0:00:01]} 27. Nf3 {[%emt 0:00:18]} Nxf6 {[%emt 0:00:24]} 28. Ng5+ {[%emt 0:00:46]} Kg8 {[%emt 0:00:21]} 29. Rd1 {[%emt 0:00:50]} Nd5 {[%emt 0:04:18]} 30. Bd4 {[%emt 0:09:11]} Nxf4 {[%emt 0:14:23]} 31. Be5 {[%emt 0:00:55]} Nd5 {[%emt 0:00:04]} 32. c4 {[%emt 0:00:59]} Rc8 {[%emt 0:00:09]} 33. Rd4 {[%emt 0:00:32]} Nb6 {[%emt 0:02:38]} 34. c5 {[%emt 0:02:46]} Nd5 {[%emt 0:00:51]} 35. Kd2 {[%emt 0:01:19]} Rxc5 {[%emt 0:04:29]} 36. c4 {[%emt 0:00:16]} a5 {[%emt 0:02:15]} 37. cxd5 {[%emt 0:00:22]} exd5 {[%emt 0:02:17]} 38. Ke3 {[%emt 0:01:49]} Rb5 {[%emt 0:02:54]} 39. Kf4 {[%emt 0:01:11]} Bc2 {[%emt 0:02:56]} 40. Bd6 {[%emt 0:00:00]} a4 {[%emt 0:00:00]} 41. Ke5 {[%emt 0:03:28]} Bb3 {[%emt 0:09:18]} 42. Rb4 {[%emt 0:03:18]} Rxb4 {[%emt 0:00:12]} 43. Bxb4 {[%emt 0:00:04]} Ba2 {[%emt 0:00:35]} 44. Bc3 {[%emt 0:00:15]} Bb3 {[%emt 0:00:12]} 45. Bd4 {[%emt 0:00:25]} a3 {[%emt 0:00:18]} 46. Ke6 {[%emt 0:00:14]} Bc2 {[%emt 0:00:24]} 47. Ke7 {[%emt 0:01:37]} Bf5 {[%emt 0:02:56]} 48. Nf7 {[%emt 0:01:06]} g5 {[%emt 0:02:38]} 49. Nxg5 {[%emt 0:00:43]} a2 {[%emt 0:00:15]} 50. Nf7 {[%emt 0:00:42]} Bd7 {[%emt 0:00:03]} 51. Nd6 {[%emt 0:02:49]} Ba4 {[%emt 0:00:10]} 52. Nf5 {[%emt 0:02:11]} Bc2 {[%emt 0:00:24]} 53. Ne3 {[%emt 0:00:07]} 1-0

[Event "Asian Continental-ch Women 2019"]
[Site "XingTai"]
[Date "2019.06.14"]
[Round "8.19"]
[White "Sukandar, Irine Kharisma"]
[Black "Munkhzul, Turmunkh"]
[Result "1/2-1/2"]
[ECO "B19"]
[WhiteElo "2378"]
[BlackElo "2371"]
[Annotator "NA"]
[PlyCount "55"]
[EventDate "2019.06.06"]
[EventType "swiss"]
[EventCountry "CHN"]
[SourceTitle "playchess.com"]
[Source "ChessBase"]
[SourceQuality "1"]
[TimeControl "40/5400+30:1800+30"]

1. e4 {[%emt 0:00:00]} c6 {[%emt 0:00:00]} 2. d4 {[%emt 0:00:07]} d5 {[%emt 0:00:40]} 3. Nc3 {[%emt 0:00:20]} dxe4 {[%emt 0:01:00]} 4. Nxe4 {[%emt 0:00:05]} Bf5 {[%emt 0:00:33]} 5. Ng3 {[%emt 0:00:18]} Bg6 {[%emt 0:00:11]} 6. h4 {[%emt 0:00:21]} h6 {[%emt 0:00:23]} 7. Nf3 {[%emt 0:00:18]} e6 {[%emt 0:00:43]} 8. h5 {[%emt 0:01:47]} Bh7 {[%emt 0:00:16]} 9. Bd3 {[%emt 0:00:10]} Bxd3 {[%emt 0:00:56]} 10. Qxd3 {[%emt 0:00:05]} Nf6 {[%emt 0:01:43]} 11. Bd2 {[%emt 0:00:47]} Nbd7 {[%emt 0:00:45]} 12. O-O-O {[%emt 0:00:25]} Be7 {[%emt 0:00:51]} 13. Qe2 {[%emt 0:04:11]} O-O {[%emt 0:02:18]} 14. Ne5 {[%emt 0:00:38]} Qc7 {[%emt 0:07:38]} 15. f4 {[%emt 0:04:52]} c5 {[%emt 0:07:05]} 16. Nxd7 {[%emt 0:10:15]} Qxd7 {[%emt 0:01:28]} 17. dxc5 {[%emt 0:01:18]} Qa4 {[%emt 0:01:41]} 18. Kb1 {[%emt 0:01:14]} Bxc5 {[%emt 0:00:55]} 19. Qf3 {[%emt 0:04:43]} Rfc8 {[%emt 0:06:44]} 20. Bc3 {[%emt 0:10:49]} Nd5 {[%emt 0:27:17]} 21. Rxd5 {[%emt 0:00:59]} exd5 {[%emt 0:02:26]} 22. Nf5 {[%emt 0:00:56]} Bf8 {[%emt 0:13:16]} 23. Nxh6+ {[%emt 0:24:09]} gxh6 {[%emt 0:01:25]} 24. Qg4+ {[%emt 0:02:07]} Kh7 {[%emt 0:00:07]} 25. Qf5+ {[%emt 0:00:13]} Kg8 {[%emt 0:00:16]} 26. Qg4+ {[%emt 0:01:04]} Kh7 {[%emt 0:00:10]} 27. Qf5+ {[%emt 0:00:28]} Kg8 {[%emt 0:00:14]} 28. Qg4+ {[%emt 0:00:40]} 1/2-1/2